fUSD/lending_fUSD_20240916
["ID","MTS","AMOUNT","RATE_DAILY","PERIOD"]
[338339473,1726516108077,-373.86105021,0.00012644,2]
[338339474,1726516108106,-174.36,0.0001267,2]
[338339475,1726516108132,-153.82,0.00012687,2]
[338339476,1726516108159,-1379.34564579,0.000127,4]
[338339478,1726516149062,1901.33,0.00012432,2]
[338339482,1726516160324,233.49,0.00012446,2]
[338339483,1726516170435,250.0,0.00012446,2]
[338339489,1726516221406,571.02,0.00012575,2]
[338339505,1726516232121,-20.65435421,0.000127,4]
[338339506,1726516232131,-199.02,0.00012788,2]
[338339507,1726516232140,-93.89696968,0.000128,4]
[338339536,1726516238131,-1806.10303032,0.000128,4]
[338339537,1726516238140,-7.96946999,0.00012864,2]
[338339538,1726516238184,-334.93053001,0.00012864,2]
[338339539,1726516238193,-150.0,0.00012877,2]
[338339540,1726516238204,-181.47253357,0.000129,2]
[338339541,1726516238213,-2400.0,0.000129,4]
[338339542,1726516238222,-285.0152984,0.000129,2]
[338339543,1726516238231,-39.60729113,0.000129,2]
[338339544,1726516238243,-113.756905,0.000129,2]
[338339545,1726516238252,-499.99,0.00012951,2]
[338339546,1726516238261,-160.03040531,0.00012973,2]
[338339547,1726516238270,-216.30053767,0.0001299,2]
[338339548,1726516238279,-1517.42,0.0001299,2]
[338339549,1726516238289,-499.99,0.0001299,2]
[338339550,1726516238298,-9999.99,0.0001299,2]
[338339551,1726516238307,-264.341,0.00012999,2]
[338339552,1726516238316,-167.663,0.00012999,2]
[338339553,1726516238326,-705.94841636,0.00012999,2]
[338339554,1726516238336,-150.0,0.00012999,2]
[338339555,1726516238345,-178798.50267419,0.00013,2]
[338339556,1726516238355,-23137.52959717,0.00013,2]
[338339557,1726516238366,-2004.08724112,0.00013,2]
[338339617,1726516239103,-1257.43565756,0.00013,2]
[338339619,1726516239113,-4181.1963038,0.00013,2]
[338339621,1726516239126,-758.08995883,0.00013,2]
[338339624,1726516239137,-400.0,0.00013,2]
[338339719,1726516240036,-404.7,0.00012713,2]
[338339720,1726516240048,-6260.10077973,0.00013,2]
[338339721,1726516240059,-34390.09549259,0.00013,2]
[338339722,1726516240070,-87390.48324477,0.00013,2]
[338339723,1726516240080,-64524.22854119,0.00013,2]
[338339725,1726516240092,-27053.90907254,0.00013,2]
[338339727,1726516240103,-751.85538239,0.00013,2]
[338339729,1726516240114,-2686.02786306,0.00013,2]
[338339731,1726516240127,-1458.91842534,0.00013,2]
[338339734,1726516240142,-2110.66568425,0.00013,2]
[338339736,1726516240153,-4190.17461211,0.00013,2]
[338339738,1726516240164,-2925.98626232,0.00013,2]
[338339740,1726516240175,-397.95,0.00013,2]
[338339742,1726516240198,-91681.41340885,0.00013,2]
[338339743,1726516240211,-969.65529697,0.00013,2]
[338339744,1726516240256,-794.79791123,0.00013,2]
[338339745,1726516240267,-449.35863656,0.00013,2]
[338339746,1726516240279,-998.486475,0.00013,2]
[338339747,1726516240291,-2383.28089997,0.00013,2]
[338339748,1726516240311,-11609.2,0.00013,2]
[338339749,1726516240322,-391.951146,0.00013,2]
[338339766,1726516243054,-13779.17179148,0.00013,2]
[338339769,1726516243069,-1466.46715204,0.00013,2]
[338339771,1726516243082,-328.04999985,0.00013,2]
[338339773,1726516243106,-502.86469275,0.00013,2]
[338339774,1726516243117,-1720.3100005,0.00013,2]
[338339775,1726516243128,-12722.77961447,0.00013,2]
[338339776,1726516243138,-5000.0,0.00013,2]
[338339777,1726516243149,-7300.0,0.00013,2]
[338339778,1726516243161,-1302.1840501,0.00013,2]
[338339779,1726516243217,-687.6601824,0.00013,2]
[338339780,1726516243228,-1778.99,0.00013,2]
[338339781,1726516243239,-5420.415,0.00013,2]
[338339782,1726516243250,-359.73856219,0.00013,2]
[338339783,1726516243261,-636.49603942,0.00013,2]
[338339784,1726516243272,-2382.52120733,0.00013,2]
[338339865,1726516244119,-1195515.52845099,0.00013,2]
[338339867,1726516244129,-1100.0,0.00013,2]
[338339869,1726516244139,-65753.16098545,0.00013,2]
[338339871,1726516244150,-177805.24882099,0.00013,2]
[338340051,1726516246008,-9713.94895569,0.00013,2]
[338340053,1726516246019,-1470.51803953,0.00013,2]
[338340058,1726516246062,-7290.30369597,0.00013,2]
[338340065,1726516246117,-5486.25292594,0.00013,2]
[338340089,1726516246337,-11889.16564371,0.00013,2]
[338340091,1726516246350,-792.73224283,0.00013,2]
[338340093,1726516246362,-3121.61854213,0.00013,2]
[338340095,1726516246375,-704.85845544,0.00013,2]
[338340098,1726516246391,-3018.87036467,0.00013,2]
[338340100,1726516246404,-6770.28999999,0.00013,2]
[338340103,1726516246417,-3338.58727615,0.00013,2]
[338340105,1726516246429,-656.37,0.00013,2]
[338340107,1726516246441,-2289.91559988,0.00013,2]
[338340110,1726516246454,-264.06840755,0.00013,2]
[338340112,1726516246467,-74600.46239154,0.00013,2]
[338340272,1726516327814,337.98,0.00011336,2]
[338340273,1726516523549,1050.0,0.00011,2]
[338340274,1726516547960,840.0,0.00012603,2]
[338340275,1726516594275,162.09,0.00010959,2]
[338340276,1726516768083,285.51,0.00012612,2]
[338340279,1726516806774,200.0,0.00012619,2]
[338340280,1726516807260,373.86105021,0.00012615,2]
[338340282,1726516852625,250.0,0.00012586,2]
[338340283,1726517010462,500.0,0.0002505,120]
[338340284,1726517022073,200.0,0.0002408,120]
[338340285,1726517087984,155.36,0.00010959,2]
[338340286,1726517110733,328.0,0.00012629,2]
[338340287,1726517119810,150.0,0.00011688,2]
[338340288,1726517149836,343.51,0.00010761,2]
[338340293,1726517373419,250.0,0.00012486,2]
[338340294,1726517409140,-300.0,0.00012758,2]
[338340295,1726517409166,-3820.33398716,0.00012759,2]
[338340296,1726517409196,-840.73203587,0.00012759,2]
[338340297,1726517409228,-4120.33398716,0.00012759,2]
[338340298,1726517409272,-4120.33398716,0.00012759,2]
[338340299,1726517409338,-4120.33398716,0.00012759,2]
[338340300,1726517409385,-4120.33398716,0.00012759,2]
[338340301,1726517409449,-4120.33398716,0.00012759,2]
[338340304,1726517432291,-9106.40373337,0.00012759,2]
[338340305,1726517432302,-966.03305,0.00012759,2]
[338340306,1726517432313,-277.9595,0.00012759,2]
[338340307,1726517432344,-450.44936041,0.00012759,2]
[338340308,1726517432399,-1489.54003819,0.00012759,2]
[338340309,1726517432408,-150.0,0.00012759,2]
[338340310,1726517432417,-176.41,0.00012761,2]
[338340311,1726517432426,-291.63,0.00012776,2]
[338340312,1726517432436,-285.51,0.00012819,2]
[338340313,1726517432446,-590.06,0.00012819,2]
[338340314,1726517432455,-3000.0,0.0001287,2]
[338340315,1726517432464,-3000.0,0.0001287,2]
[338340316,1726517432473,-1369.92842422,0.0001287,2]
[338340317,1726517432484,-806.83333976,0.0001287,2]
[338340318,1726517432507,-823.23823602,0.0001287,2]
[338340319,1726517432516,-3000.0,0.0001287,2]
[338340320,1726517432525,-3000.0,0.0001287,2]
[338340321,1726517432534,-3000.0,0.0001287,2]
[338340322,1726517432543,-3000.0,0.0001287,2]
[338340323,1726517432552,-3000.0,0.0001287,2]
[338340324,1726517432561,-153.82,0.00012878,2]
[338340325,1726517432570,-500.0,0.00012896,2]
[338340326,1726517432579,-200.0,0.00012896,2]
[338340327,1726517432590,-155.94268703,0.000129,2]
[338340328,1726517432599,-181.47253356,0.000129,2]
[338340329,1726517432608,-3145.05532197,0.000129,2]
[338340330,1726517432618,-153.36419613,0.000129,2]
[338340331,1726517432627,-538.6930454,0.000129,2]
[338340332,1726517432636,-215.78248225,0.000129,2]
[338340333,1726517432646,-344.03414432,0.00012973,2]
[338340334,1726517432655,-502.07381489,0.00012973,2]
[338340335,1726517432664,-161.69,0.0001299,2]
[338340337,1726517432673,-557.99243863,0.00012999,2]
[338340339,1726517432684,-150.99,0.00012999,2]
[338340341,1726517432694,-114872.06624899,0.00013,2]
[338340344,1726517432741,-1205.0,0.00013,2]
[338340345,1726517432752,-4384.59,0.00013,2]
[338340348,1726517432763,-564.73058288,0.00013,2]
[338340354,1726517438259,-2074.28288858,0.00013,2]
[338340355,1726517438313,-538.27659695,0.00013,2]
[338340356,1726517438367,-11806.32487496,0.00013,2]
[338340357,1726517438377,-638984.67272537,0.00013,2]
[338340358,1726517438421,-483.7355491,0.00013,2]
[338340359,1726517438476,-5020.75744016,0.00013,2]
[338340360,1726517438487,-420.9985725,0.00013,2]
[338340361,1726517438498,-4026.6272612,0.00013,2]
[338340362,1726517438583,-668.52975339,0.00013,2]
[338340363,1726517438598,-534.4333347,0.00013,2]
[338340371,1726517440326,-2074.542965,0.00013,2]
[338340372,1726517440338,-56309.7912836,0.00013,2]
[338340373,1726517440349,-70589.4874217,0.00013,2]
[338340374,1726517440360,-1444.0,0.00013,2]
[338340375,1726517440486,-1925.91768048,0.00013,2]
[338340376,1726517440497,-581.095,0.00013,2]
[338340378,1726517443257,-307.12609913,0.000129,2]
[338340379,1726517443267,-1070.40844087,0.00013,2]
[338340380,1726517443310,-614.29174979,0.00013,2]
[338340381,1726517443502,-4041.2497125,0.00013,2]
[338340382,1726517443518,-2551.14997692,0.00013,2]
[338340383,1726517443529,-3972.09929284,0.00013,2]
[338340384,1726517443540,-304.4341043,0.00013,2]
[338340385,1726517443551,-17362.55801782,0.00013,2]
[338340386,1726517443562,-2248.95674392,0.00013,2]
[338340387,1726517443573,-344.59647188,0.00013,2]
[338340388,1726517443584,-8823.99346952,0.00013,2]
[338340435,1726517444103,-1118.97,0.00013,2]
[338340436,1726517444114,-14746.45786694,0.00013,2]
[338340437,1726517444125,-401.70140886,0.00013,2]
[338340460,1726517446303,-1040.67985396,0.00013,2]
[338340462,1726517446356,-574.71842461,0.00013,2]
[338340463,1726517446367,-597.3562244,0.00013,2]
[338340464,1726517446379,-1240.6564181,0.00013,2]
[338340465,1726517446390,-530.6,0.00013,2]
[338340466,1726517446411,-1321.4022825,0.00013,2]
[338340467,1726517446422,-3564.74835214,0.00013,2]
[338340468,1726517446433,-260.0,0.00013,2]
[338340469,1726517446447,-403.53386833,0.00013,2]
[338340470,1726517446466,-608.18032053,0.00013,2]
[338340471,1726517446477,-611.804,0.00013,2]
[338340472,1726517446488,-1869.3662922,0.00013,2]
[338340473,1726517446521,-6372.4344052,0.00013,2]
[338340474,1726517446532,-3561.05737982,0.00013,2]
[338340476,1726517483259,1000.0,0.00026,60]
[338340479,1726517611327,500.0,0.00025533,120]
[338340480,1726517621368,200.0,0.000245,120]
[338340481,1726517648214,157.98,0.00010959,2]
[338340482,1726517749586,390.81,0.00011471,2]
[338340483,1726517919638,300.0,0.00026,60]
[338340485,1726518134465,250.0,0.00012557,2]
[338340486,1726518138026,262.4,0.00012558,2]
[338340487,1726518209270,500.0,0.00025149,120]
[338340488,1726518217290,156.15,0.00010959,2]
[338340489,1726518219802,191.498707,0.0002408,120]
[338340490,1726518219833,4242.89,0.00012522,2]
[338340491,1726518254924,1050.0,0.00011,2]
[338340492,1726518276475,412.07,0.0001087,2]
[338340494,1726518373507,1500.0,0.00012492,2]
[338340495,1726518443782,250.0,0.00012371,2]
[338340500,1726518527100,150.0,0.00012419,2]
[338340501,1726518527124,7.59,0.00012419,2]
[338340502,1726518527524,157.59,0.0001244,2]
[338340503,1726518527993,157.59,0.00012461,2]
[338340504,1726518528211,150.0,0.00012481,2]
[338340505,1726518528236,7.59,0.00012481,2]
[338340506,1726518529289,150.0,0.00012419,2]
[338340507,1726518529309,150.0,0.00012419,2]
[338340508,1726518529331,150.0,0.00012419,2]
[338340509,1726518529351,150.0,0.00012419,2]
[338340510,1726518529376,150.0,0.00012419,2]
[338340511,1726518529397,150.0,0.00012419,2]
[338340512,1726518529419,150.0,0.00012419,2]
[338340513,1726518529441,150.0,0.00012419,2]
[338340514,1726518529462,150.0,0.00012419,2]
[338340515,1726518529483,150.0,0.00012419,2]
[338340516,1726518529503,150.0,0.00012419,2]
[338340517,1726518529523,150.0,0.00012419,2]
[338340518,1726518529548,200.0,0.00012419,2]
[338340524,1726518587906,175.58,0.00012471,2]
[338340539,1726518631289,-230.04,0.00012685,2]
[338340540,1726518631299,-500.3,0.00012709,2]
[338340541,1726518631310,-281.339,0.0001274,2]
[338340542,1726518631320,-300.0,0.00012769,2]
[338340544,1726518631329,-6241.11475226,0.0001277,2]
[338340547,1726518631347,-355.41834579,0.0001277,2]
[338340548,1726518631359,-3158.61150195,0.0001277,2]
[338340549,1726518631369,-250.0,0.00012797,2]
[338340550,1726518631379,-51.61620695,0.0001287,2]
[338340551,1726518631391,-715.65919982,0.0001287,2]
[338340552,1726518631400,-444.34318885,0.0001287,2]
[338340553,1726518631411,-429.28907115,0.0001287,2]
[338340554,1726518631420,-500.0,0.00012896,2]
[338340555,1726518631431,-200.0,0.00012896,2]
[338340556,1726518631439,-2153.37239146,0.00012896,2]
[338340557,1726518631450,-4258.40760854,0.00012896,2]
[338340558,1726518631460,-2953.35978149,0.000129,2]
[338340559,1726518631470,-737.6,0.00012985,2]
[338340560,1726518631479,-150.0,0.00012998,2]
[338340561,1726518631488,-300.49052901,0.00012999,2]
[338340562,1726518631497,-500.0,0.00012999,2]
[338340563,1726518631506,-500.0,0.00012999,2]
[338340564,1726518631516,-500.0,0.00012999,2]
[338340565,1726518631526,-399.61322856,0.00012999,2]
[338340566,1726518631535,-489.41815365,0.00012999,2]
[338340567,1726518631547,-347.96815075,0.00012999,2]
[338340568,1726518631557,-2991.72204881,0.00012999,2]
[338340569,1726518631566,-52581.03889334,0.00013,2]
[338340570,1726518631577,-38164.60663047,0.00013,2]
[338340571,1726518631587,-150708.42318827,0.00013,2]
[338340572,1726518631598,-919.70999,0.00013,2]
[338340573,1726518631613,-392.16304759,0.00013,2]
[338340574,1726518631625,-604.51167939,0.00013,2]
[338340575,1726518631636,-18894.63762485,0.00013,2]
[338340576,1726518631647,-404.4999995,0.00013,2]
[338340577,1726518631658,-15593.85894007,0.00013,2]
[338340578,1726518631669,-250.0,0.00013,2]
[338340579,1726518631679,-6200.37173994,0.00013,2]
[338340580,1726518631691,-3287.8920748,0.00013,2]
[338340584,1726518637391,-153.65201141,0.000129,2]
[338340585,1726518637401,-172.22798859,0.00012999,2]
[338340586,1726518637413,-128.26254041,0.00012999,2]
[338340587,1726518637422,-308.31306173,0.00013,2]
[338340588,1726518637454,-36971.8007599,0.00013,2]
[338340589,1726518637465,-1656.07732759,0.00013,2]
[338340590,1726518637476,-18380.47787291,0.00013,2]
[338340591,1726518637511,-874.83664324,0.00013,2]
[338340592,1726518637523,-759.24899239,0.00013,2]
[338340593,1726518637534,-2820.66603228,0.00013,2]
[338340594,1726518637568,-1682.74138119,0.00013,2]
[338340604,1726518639454,-245151.77995888,0.00013,2]
[338340605,1726518639564,-40424.31189806,0.00013,2]
[338340606,1726518639623,-35592.50304387,0.00013,2]
[338340607,1726518639635,-941.55068476,0.00013,2]
[338340643,1726518645430,-789.99551932,0.00013,2]
[338340644,1726518736966,150.0,0.00010959,2]
[338340645,1726518736987,3.4,0.00010959,2]
[338340646,1726518818271,150.0,0.00011091,2]
[338340647,1726518818291,150.0,0.00011091,2]
[338340648,1726518818311,131.51,0.00011091,2]
[338340649,1726518999964,250.0,0.0001261,2]
[338340650,1726519011190,372.59,0.00012565,2]
[338340652,1726519134310,-225.071,0.0001274,2]
[338340653,1726519134331,-274.23202314,0.00012801,2]
[338340654,1726519134352,-1500.0,0.00012856,2]
[338340655,1726519134373,-728.02689,0.0001287,2]
[338340656,1726519134394,-500.0,0.00012896,2]
[338340657,1726519134415,-300.0,0.00012899,2]
[338340658,1726519134435,-2866.00792407,0.000129,2]
[338340659,1726519134456,-269.96834547,0.000129,2]
[338340660,1726519134476,-359.12869692,0.000129,2]
[338340661,1726519134496,-153.36419613,0.000129,2]
[338340662,1726519134518,-500.0,0.00012999,2]
[338340663,1726519134537,-179.50092427,0.00012999,2]
[338340664,1726519139586,-320.49907573,0.00012999,2]
[338340665,1726519139612,-351.03632553,0.00012999,2]
[338340666,1726519139633,-150.0,0.00012999,2]
[338340667,1726519139655,-9178.46459874,0.00013,2]
[338340668,1726519142987,-10000.0,0.00013,2]
[338340669,1726519144237,-10000.0,0.00013,2]
[338340670,1726519146899,-10000.0,0.00013,2]
[338340671,1726519147264,-6194.35816316,0.00013,2]
[338340672,1726519147286,-3805.64183684,0.00013,2]
[338340673,1726519147685,-10000.0,0.00013,2]
[338340674,1726519148122,-10000.0,0.00013,2]
[338340675,1726519148511,-10000.0,0.00013,2]
[338340676,1726519148925,-10000.0,0.00013,2]
[338340677,1726519149353,-10000.0,0.00013,2]
[338340678,1726519149761,-10000.0,0.00013,2]
[338340679,1726519150177,-10000.0,0.00013,2]
[338340680,1726519150590,-10000.0,0.00013,2]
[338340681,1726519151005,-10000.0,0.00013,2]
[338340682,1726519151452,-10000.0,0.00013,2]
[338340683,1726519155252,-10000.0,0.00013,2]
[338340684,1726519156412,-10000.0,0.00013,2]
[338340685,1726519178948,400.0,0.000125,4]
[338340686,1726519180875,150.0,0.000126,4]
[338340687,1726519180896,150.0,0.000126,4]
[338340688,1726519180916,150.0,0.000126,4]
[338340689,1726519180937,150.0,0.000126,4]
[338340690,1726519180957,150.0,0.000126,4]
[338340691,1726519180980,50.0,0.000126,4]
[338340692,1726519192161,-1200.0,0.000127,4]
[338340693,1726519192181,-1700.0,0.000128,4]
[338340694,1726519192202,-2100.0,0.000129,4]
[338340695,1726519192227,-4456.2,0.00013,2]
[338340696,1726519196963,-10000.0,0.00013,2]
[338340697,1726519197862,-10000.0,0.00013,2]
[338340698,1726519198670,-10000.0,0.00013,2]
[338340699,1726519199451,-10000.0,0.00013,2]
[338340700,1726519200983,-10000.0,0.00013,2]
[338340701,1726519201443,-10000.0,0.00013,2]
[338340702,1726519202388,-300.0,0.00012999,2]
[338340703,1726519202409,-9700.0,0.00013,2]
[338340704,1726519203208,-10000.0,0.00013,2]
[338340705,1726519204081,-10000.0,0.00013,2]
[338340706,1726519205026,-155.64,0.0001299,2]
[338340707,1726519205052,-155.64,0.0001299,2]
[338340708,1726519205087,-9688.72,0.00013,2]
[338340709,1726519205769,-155.64,0.0001299,2]
[338340710,1726519205790,-155.64,0.0001299,2]
[338340711,1726519205812,-9688.72,0.00013,2]
[338340712,1726519206876,-155.64,0.0001299,2]
[338340713,1726519206897,-155.64,0.0001299,2]
[338340714,1726519206918,-155.64,0.0001299,2]
[338340715,1726519206940,-155.64,0.0001299,2]
[338340716,1726519206963,-9377.44,0.00013,2]
[338340717,1726519208211,-155.64,0.0001299,2]
[338340718,1726519208233,-9844.36,0.00013,2]
[338340719,1726519258477,150.0,0.00012466,2]
[338340720,1726519258499,62.21,0.00012466,2]
[338340721,1726519286257,150.0,0.00012418,2]
[338340722,1726519286278,100.0,0.00012418,2]
[338340723,1726519313764,150.0,0.00010959,2]
[338340724,1726519313785,9.71,0.00010959,2]
[338340725,1726519318218,150.0,0.00012493,2]
[338340726,1726519342318,150.0,0.00012404,2]
[338340727,1726519342338,100.0,0.00012404,2]
[338340728,1726519409027,500.0,0.00025632,120]
[338340729,1726519440290,150.0,0.00012615,2]
[338340730,1726519440311,105.38490657,0.00012615,2]
[338340731,1726519464180,217.06,0.00012369,2]
[338340732,1726519490235,150.0,0.00010476,2]
[338340733,1726519490259,150.0,0.00010476,2]
[338340734,1726519490284,146.3,0.00010476,2]
[338340735,1726519510654,150.0,0.00012316,2]
[338340736,1726519510677,150.0,0.00012316,2]
[338340737,1726519510704,150.0,0.00012316,2]
[338340738,1726519510725,150.0,0.00012316,2]
[338340739,1726519510747,150.0,0.00012316,2]
[338340740,1726519510768,150.0,0.00012316,2]
[338340741,1726519510793,150.0,0.00012316,2]
[338340742,1726519510813,150.0,0.00012316,2]
[338340743,1726519510834,150.0,0.00012316,2]
[338340744,1726519510854,150.0,0.00012316,2]
[338340745,1726519522244,118.71534698,0.00010959,2]
[338340746,1726519522270,181.28465302,0.00010959,2]
[338340747,1726519545372,250.0,0.00012241,2]
[338340749,1726519608364,164.71,0.00012301,2]
[338340750,1726519623551,1201.73,0.00012301,2]
[338340753,1726519677093,783.027909,0.00012575,2]
[338340756,1726519758387,232.78,0.00012415,2]
[338340759,1726519796260,250.0,0.00012277,2]
[338340760,1726519810355,154.32,0.00012455,2]
[338340761,1726519810561,154.32,0.00012461,2]
[338340762,1726519810788,154.32,0.00012466,2]
[338340763,1726519811243,154.32,0.00012472,2]
[338340764,1726519811482,154.32,0.00012478,2]
[338340765,1726519811707,154.32,0.00012483,2]
[338340766,1726519811941,154.32,0.00012489,2]
[338340767,1726519812152,154.32,0.00012495,2]
[338340768,1726519812569,154.32,0.000125,2]
[338340769,1726519812810,154.32,0.00012506,2]
[338340770,1726519813012,154.32,0.00012512,2]
[338340771,1726519813223,154.32,0.00012517,2]
[338340782,1726519831573,-185.90686756,0.00012639,2]
[338340784,1726519831583,-247.01313244,0.0001274,2]
[338340787,1726519831594,-199.28686756,0.0001274,2]
[338340789,1726519831602,-378.89575332,0.00012859,2]
[338340790,1726519831611,-500.0,0.00012896,2]
[338340792,1726519831620,-378.8957533,0.00012899,2]
[338340793,1726519831629,-239.41913128,0.000129,2]
[338340794,1726519831638,-236.22230226,0.000129,2]
[338340795,1726519831647,-150.0,0.00012959,2]
[338340796,1726519831655,-158.21,0.0001299,2]
[338340797,1726519831664,-746.40542393,0.00012999,2]
[338340798,1726519831673,-150.0,0.00012999,2]
[338340799,1726519831682,-300.0,0.00012999,2]
[338340800,1726519831691,-499.99,0.00012999,2]
[338340801,1726519831700,-759.66856579,0.00013,2]
[338340802,1726519831711,-920.06431593,0.00013,2]
[338340803,1726519831721,-2832.3393828,0.00013,2]
[338340804,1726519831732,-350.62182458,0.00013,2]
[338340805,1726519831744,-17823.71729186,0.00013,2]
[338340806,1726519831753,-22375.20041414,0.00013,2]
[338340807,1726519831764,-91307.30104842,0.00013,2]
[338340808,1726519831775,-452661.31423141,0.00013,2]
[338340809,1726519831785,-297.70171061,0.00013,2]
[338340810,1726519831794,-20331.62636968,0.00013,2]
[338340811,1726519831805,-3164.75000067,0.00013,2]
[338340812,1726519831817,-500.0,0.00013,2]
[338340813,1726519831828,-812.9464343,0.00013,2]
[338340814,1726519831839,-3987.45282922,0.00013,2]
[338340815,1726519831850,-1435.23226309,0.00013,2]
[338340816,1726519831861,-704.92261432,0.00013,2]
[338340817,1726519831872,-2138.831207,0.00013,2]
[338340818,1726519831886,-653.18224521,0.00013,2]
[338340819,1726519831897,-597.86703799,0.00013,2]
[338340822,1726519837710,-1606.73102151,0.00013,2]
[338340823,1726519837722,-1093.63437584,0.00013,2]
[338340824,1726519837764,-1989.47898931,0.00013,2]
[338340825,1726519838204,-3181.17244625,0.00013,2]
[338340832,1726519839632,-2775.94000765,0.00013,2]
[338340833,1726519839643,-1669.33501762,0.00013,2]
[338340856,1726519842620,-538.67,0.00013,2]
[338340901,1726519843746,-523.37567432,0.00013,2]
[338340920,1726519845575,-12588.6223722,0.00013,2]
[338340922,1726519845587,-416.0689448,0.00013,2]
[338340926,1726519845628,-605.93652386,0.00013,2]
[338340932,1726519845684,-343.53915486,0.00013,2]
[338340938,1726519845792,-42674.37497212,0.00013,2]
[338340940,1726519845803,-522.01898272,0.00013,2]
[338340952,1726519850675,500.0,0.000126,4]
[338340953,1726519853719,580.69,0.00010959,2]
[338340954,1726519928489,157.92,0.00010959,2]
[338340955,1726519951153,150.0,0.00011984,2]
[338340956,1726519968910,150.0,0.000124,2]
[338340957,1726519988838,401.67,9.974e-05,2]
[338340958,1726519989056,401.67,0.00012238,2]
[338340959,1726520007545,1192.71,0.00011892,2]
[338340960,1726520009568,500.0,0.00026,120]
[338340961,1726520054198,250.0,0.0001189,2]
[338340962,1726520057355,1050.0,0.00011,2]
[338340964,1726520164407,600.86,0.00011889,2]
[338340965,1726520203417,154.66,0.00011889,2]
[338340966,1726520276027,177.59,0.00011887,2]
[338340967,1726520404412,174.73,0.00012627,2]
[338340968,1726520419624,250.0,0.00011889,2]
[338340969,1726520451359,250.0,0.00011841,2]
[338340970,1726520506415,154.97,0.00010959,2]
[338340971,1726520512681,396.47,9.917e-05,2]
[338340972,1726520512932,396.47,0.00012181,2]
[338340974,1726520562192,267.7675,0.000126,2]
[338340975,1726520599189,151.0,0.00012181,2]
[338340976,1726520599539,237.0,0.00012181,2]
[338340977,1726520609133,500.0,0.00026,120]
[338340978,1726520621041,250.0,0.00011822,2]
[338340979,1726520653285,446.93,0.00011821,2]
[338340980,1726520678349,256.41,9.459e-05,2]
[338340981,1726520746342,-305.6759,0.00012676,2]
[338340982,1726520756399,-187.51788236,0.00012676,2]
[338340983,1726520756422,-255.38490658,0.00012684,2]
[338340984,1726520756446,-1500.0,0.00012686,2]
[338340989,1726520850070,500.0,0.000125,4]
[338340990,1726520852794,1100.0,0.000126,4]
[338340991,1726520864501,215.47,0.00011797,2]
[338340992,1726520949394,250.0,0.00011792,2]
[338340993,1726520968577,1000.0,0.00011792,2]
[338340994,1726520969177,-300.0,0.00012699,2]
[338340995,1726520969203,-4149.31914841,0.000127,2]
[338340996,1726520969232,-1134.97255159,0.000127,2]
[338340997,1726520969258,-1600.0,0.000127,4]
[338340998,1726520969283,-1714.34659682,0.000127,2]
[338340999,1726520969315,-1052.2462435,0.000127,2]
[338341000,1726520969340,-172.889,0.000127,2]
[338341001,1726520969366,-579.1755,0.000127,2]
[338341002,1726520969393,-150.0,0.0001273,2]